Cogmind - Beta 16.1 @@@ ROGUE MODE // 2026.02.20 @ 10:07:09 Player: SunShine214 Result: Destroyed by 6S-DZH(j) with Overtuned Pulse Rifle Performance ------------- Evolutions (1) 500 Regions Visited (5) 1000 Robots Destroyed (100) 500 Value Destroyed (2789) 2789 Prototype IDs (20) 400 Alien Tech Used (0) 0 Bonus (854) 854 TOTAL SCORE: 6043 Bonus ------- High Alert Combat Kills 54 Registered with UFD 300 Met Optimus in HQ 500 Cogmind --------- Core Integrity 0/400 Matter 247/300 Energy 339/340 System Corruption 0% Temperature Hot (215) Movement Rolling (150) Ox4 Location -9/Scraptown Parts ------- > --- POWER (1) -------- Graviton Reactor > --- PROPULSION (2) --- Armored Wheel > --- UTILITY (4) ------ Large Storage Unit Improved Targeting Computer Medium Armor Plating A0-MCA's Component Scanner > --- WEAPON (2) ------- Helical Railgun Rocket Launcher > --- INVENTORY (15) --- Improved Flight Unit Improved Flight Unit Improved Flight Unit Nuclear Pulse Thruster Advanced Weapon Cycler ID Mask Medium Armor Plating Makeshift Light Armor Plating Hacking Suite Makeshift Hacking Suite Tech Extrapolator Improved Grenade Launcher CPS Tube (2) CPS Tube (2) Peak State ------------ > --- POWER ------------ Graviton Reactor > --- PROPULSION ------- Overtuned Treads Overtuned Treads > --- UTILITY ---------- Large Storage Unit Signal Interpreter Improved Targeting Computer A0-MCA's Component Scanner > --- WEAPON ----------- Helical Railgun Rocket Launcher > --- INVENTORY -------- Improved Flight Unit Improved Flight Unit Improved Flight Unit Nuclear Pulse Thruster Advanced Weapon Cycler ID Mask Medium Armor Plating Medium Armor Plating Makeshift Light Armor Plating Hacking Suite Makeshift Hacking Suite Tech Extrapolator Improved Grenade Launcher CPS Tube CPS Tube [Rating: 45] Favorites ----------- Power Light Ion Engine Engine Light Ion Engine Power Core Light Nuclear Core Reactor Graviton Reactor Propulsion Light Treads Treads Light Treads Leg Aluminum Leg Wheel Armored Wheel Flight Unit Improved Flight Unit Utility Large Storage Unit Device Improved Terrain Scanner Storage Large Storage Unit Processor Signal Interpreter Protection Hardened Light Armor Plating Weapon Minigun Energy Gun Medium Laser Energy Cannon Advanced Beam Cannon Ballistic Gun Minigun Launcher Grenade Launcher Special Weapon CPS Tube Impact Weapon Mace Build | -11 -10 -9 -9 -9 -9 ------- Run | Yrd Mat Mat Sto Rec Scr Slots Evolved 2 | . . 2 . . . Power . | . . . . . . Propulsion . | . . . . . . Utility 2 | . . 2 . . . Weapon . | . . . . . . Parts Attached 62 | 7 1 19 25 . 10 Power 5 | 1 1 2 . . 1 Engine 3 | 1 1 1 . . . Core 1 | . . 1 . . . Reactor 1 | . . . . . 1 Propulsion 20 | 2 . 4 12 . 2 Treads 13 | 2 . 4 5 . 2 Leg 1 | . . . 1 . . Wheel 3 | . . . 3 . . Hover . | . . . . . . Flight 3 | . . . 3 . . Utility 19 | 2 . 8 4 . 5 Device 7 | 1 . 1 3 . 2 Storage 2 | 1 . 1 . . . Processor 4 | . . 1 1 . 2 Hackware . | . . . . . . Protection 6 | . . 5 . . 1 Artifact . | . . . . . . Weapon 18 | 2 . 5 9 . 2 Energy Gun 6 | 1 . 2 3 . . Energy Cannon 2 | . . . 2 . . Ballistic Gun 5 | 1 . 3 . . 1 Ballistic Cannon . | . . . . . . Launcher 3 | . . . 3 . . Special Weapon 1 | . . . . . 1 Impact Weapon 1 | . . . 1 . . Slashing Weapon . | . . . . . . Piercing Weapon . | . . . . . . Special Melee Weapon . | . . . . . . Unidentified Prototypes 5 | . . 1 4 . . Corrupted Parts 1 | . . 1 . . . System Corruption 10 | . . 10 . . . Parts Lost 15 | . . 5 8 . 2 Power 3 | . . 2 1 . . Propulsion 3 | . . 1 1 . 1 Utility 3 | . . . 3 . . Weapon 6 | . . 2 3 . 1 Highest Loss Streak 3 | . . 2 3 . 1 To Critical Strikes . | . . . . . . Average Backups 12 | . 5 11 14 14 14 Power . | . . . . . . Propulsion 3 | . 2 3 3 4 3 Utility 5 | . 1 5 7 6 6 Weapon 2 | . 1 3 3 4 2 Tool/Special . | . . . . . . Unused Backups 32 | . 2 6 4 . 20 Power . | . . . . . . Propulsion 10 | . 1 2 4 . 3 Utility 17 | . . 3 . . 14 Weapon 3 | . 1 1 . . 1 Tool/Special 2 | . . . . . 2 Average Slot Usage (%) 90 | . 100 97 90 77 85 Engine 3 | . 14 8 . . . Core 2 | . . 1 6 . . Treads 13 | . 28 21 18 . . Wheel 8 | . . . . 22 21 Device 5 | . 14 6 2 . 5 Storage 11 | . 14 11 11 11 11 Processor 14 | . . 4 14 22 25 Protection 8 | . . 21 12 . . Energy Gun 3 | . 14 6 1 . . Energy Cannon 2 | . . . 6 11 . Ballistic Gun 7 | . 14 14 9 . . Launcher 1 | . . . 3 . 1 Special Weapon 3 | . . . . . 9 Impact Weapon 4 | . . . 1 11 10 Peak Build Rating 45 | 9 10 18 23 16 45 Average Rating 16 | 7 9 15 17 16 20 On Entrance 11 | . 9 10 18 16 16 Avg Prop Armor Cover (%) 2 | . . . 2 . . Naked Turns . | . . . . . . Heaviest Build 52 | 13 13 39 43 26 52 Greatest Support 40 | 40 40 40 40 24 36 Greatest Overweight (x) 4 | . . 1 2 1 4 Average Overweight (x) . | . . . . 1 . Largest Inventory Capacity 15 | 8 8 15 15 15 15 Average Capacity 13 | 7 8 12 15 15 15 Most Carried 15 | 1 8 15 15 14 15 Average Carried 12 | . 5 11 14 14 14 Final Capacity 15 | 8 8 15 15 15 15 Final Carried 15 | 1 8 15 14 14 14 Class Distribution -------------------- 87% | Mutant 12% | Scavenger-Mutant Dominant Class ---------------- Mutant | -10/Materials Mutant | -9/Materials Mutant | -9/Storage Mutant | -9/Recycling Mutant | -9/Scraptown Resources | -11 -10 -9 -9 -9 -9 ----------- Run | Yrd Mat Mat Sto Rec Scr Matter Collected 2182 | 312 116 547 658 . 549 Remotely . | . . . . . . Salvage Created 3489 | 176 361 1132 1243 . 577 Parts 198 | 13 19 75 71 . 20 Haulers Intercepted 2 | . 1 . 1 . . Recyclers Shooed 3 | . 1 1 1 . . Parts Field Recycled . | . . . . . . Retrieved Matter . | . . . . . . Parts Self-Destructed . | . . . . . . Prevented . | . . . . . . Parts Restored . | . . . . . . Kills | -11 -10 -9 -9 -9 -9 ------- Run | Yrd Mat Mat Sto Rec Scr Combat Hostiles Destroyed 68 | . 6 21 30 . 11 Melee 1 | . . 1 . . . Guns 33 | . 6 19 7 . 1 Cannons 10 | . . . 10 . . AOE 22 | . . . 12 . 10 Classes Destroyed 17 | 3 5 1 5 . 3 Worker 7 | 2 1 1 3 . . Builder 1 | . . . 1 . . Tunneler 4 | 4 . . . . . Hauler 2 | . 1 . 1 . . Recycler 9 | 1 1 4 3 . . Mechanic 1 | . . . 1 . . Operator 3 | . 2 . 1 . . Watcher 5 | . 2 2 1 . . Swarmer 8 | . 2 6 . . . Grunt 32 | . 4 10 18 . . Brawler 3 | . . . 3 . . Duelist 1 | . . . 1 . . Protector 2 | . . . 2 . . Sentry 11 | . . 5 6 . . Federalist 1 | . . . . . 1 Explorer 2 | . . . . . 2 Scrapper 6 | . . . . . 6 Savage 1 | . . . . . 1 Butcher 1 | . . . . . 1 Best Kill Streak 11 | 4 3 6 11 . 7 Combat Bots Only 10 | . 2 5 10 . 7 Max Kills in Single Turn 3 | 1 2 1 3 . 2 Gunslinging . | . . . . . . Exploded 3 | . . . 3 . 1 Melee 1 | . . 1 . . . Uniques/NPCs Destroyed . | . . . . . . Combat | -11 -10 -9 -9 -9 -9 -------- Run | Yrd Mat Mat Sto Rec Scr Hostile Shots Fired 315 | . 35 106 141 . 33 Missed 87 | . 12 27 41 . 7 Hits 228 | . 23 79 100 . 26 Melee 4 | . . . 4 . . Projectile 224 | . 23 79 96 . 26 Critical Strikes 8 | . . 3 2 . 3 Damage Taken 3193 | . 212 890 1562 . 529 Core 431 | . 14 64 247 . 106 Absorbed by Shields . | . . . . . . Core Remaining (%) 97 | 100 94 . . . . Volleys Fired 223 | 14 38 73 84 . 14 Largest 2 | 2 2 2 2 . 2 Hottest 124 | 70 70 90 124 . 71 Shots Fired 410 | 28 75 135 154 1 17 Gun 327 | 28 75 135 86 . 3 Cannon 46 | . . . 45 1 . Launcher 37 | . . . 23 . 14 Special . | . . . . . . Kinetic 215 | 14 38 80 80 . 3 Thermal 103 | 14 37 . 51 1 . Explosive 37 | . . . 23 . 14 Electromagnetic 55 | . . 55 . . . Robot Hit Streak 27 | 12 14 10 16 . 27 Robot Miss Streak 7 | 1 4 7 3 . 1 Penetration Max 2 | . . . . . 2 Secondary Targets . | . . . . . . Shots Hit Robots 247 | 20 48 82 82 . 15 Core Hits 142 | 8 19 35 63 . 17 Critical Kills . | . . . . . . Critical Parts Destroyed 2 | . . . 2 . . Critical Strikes 9 | 1 2 3 3 . . Burn 4 | 1 2 . 1 . . Corrupt 3 | . . 3 . . . Smash 2 | . . . 2 . . Melee Attacks 6 | . . . 6 . . Impact 6 | . . . 6 . . Slashing . | . . . . . . Piercing . | . . . . . . Sneak Attacks 1 | . . . 1 . . Combat Hostiles . | . . . . . . Follow-up Attacks . | . . . . . . Damage Inflicted 6298 | 256 621 1355 3014 . 1052 Guns 2865 | 254 614 1311 602 . 84 Cannons 553 | . . . 553 . . Explosions 2706 | . . . 1738 . 968 Melee 92 | . . . 92 . . Ramming 82 | 2 7 44 29 . . Kinetic 1879 | 115 300 864 516 . 84 Thermal 1092 | 139 314 . 639 . . Explosive 2706 | . . . 1738 . 968 Electromagnetic 447 | . . 447 . . . Impact 92 | . . . 92 . . Slashing . | . . . . . . Piercing . | . . . . . . Highest Corruption 13 | . . 10 13 13 . Average Corruption 10 | . . 10 10 13 . Corruption Purged . | . . . . . . Corruption Blocked . | . . . . . . Effects 109 | . . 33 65 11 . Message Errors 24 | . . 7 14 3 . Matter Fused 24 | . . 7 16 1 . Heat Flow Errors 8 | . . 1 7 . . Energy Discharges 17 | . . 6 8 3 . Parts Rejected 3 | . . . 3 . . Parts Fused 2 | . . . 2 . . Data Loss (minor) 16 | . . 6 8 2 . Data Loss (major) 5 | . . 2 2 1 . Misfires 4 | . . 1 2 1 . Alerts 2 | . . 2 . . . Misdirections 1 | . . . 1 . . Weapon Failures 3 | . . 1 2 . . Overload Shots . | . . . . . . Overflow Damage 108 | . . . 106 . 2 Projectiles . | . . . . . . Explosions 41 | . . . 39 . 2 Melee 67 | . . . 67 . . Knockbacks 2 | . . . 2 . . Impact 2 | . . . 2 . . Kinetic . | . . . . . . Secondary . | . . . . . . Self-Inflicted Damage 72 | . . . 72 . . Shots 4 | . . . 4 . . Rammed 19 | 1 1 12 5 . . Targets Rammed 22 | 1 2 14 5 . . Kicked . | . . . . . . Crushed 3 | . 1 2 . . . Highest Temperature 394 | 45 108 338 394 12 209 Average Temperature 86 | 18 29 90 106 9 111 Received Heat Transfer 1275 | . 78 291 579 . 327 Effects 6 | . . 1 5 . . Energy Bleed 3 | . . 1 2 . . Interference 3 | . . . 3 . . Siege Activations . | . . . . . . Martial Activations . | . . . . . . Shielding Activations . | . . . . . . Robots Disrupted . | . . . . . . Combat Hostiles . | . . . . . . Robots Corrupted 2 | . . 1 1 . . Combat Hostiles 2 | . . 1 1 . . Parts Fried 2 | . . 1 1 . . Impact Corruptions 3 | . . . 3 . . Robots Melted . | . . . . . . Combat Hostiles . | . . . . . . Parts Melted 7 | . 1 . 3 . 3 Heat Transferred 2849 | 481 1073 . 1295 . . Parts Sabotaged . | . . . . . . Parts Stolen . | . . . . . . Parts Stripped . | . . . . . . Power Chain Reactions . | . . . . . . Alert | -11 -10 -9 -9 -9 -9 ------- Run | Yrd Mat Mat Sto Rec Scr Maximum Alert Level 2 | . . 1 2 . . Low Security (%) 86 | 100 100 92 71 100 . Level 1 8 | . . 7 16 . . Level 2 4 | . . . 12 . . Level 3 . | . . . . . . Level 4 . | . . . . . . Level 5 . | . . . . . . High Security . | . . . . . . Max Security . | . . . . . . Peak Influence 502 | 20 101 229 502 149 . Initial 132 | . . . 70 132 . Average 110 | 2 30 134 144 86 . Influence Increases 1882 | 35 222 657 951 17 . Destroy 0b10 Robot/C 1100 | . 120 420 560 . . Destroy 0b10 Robot/NC 175 | 35 35 35 70 . . Destroy Leader 254 | . 36 94 124 . . Successful Hack 63 | . . 32 14 17 . Disable Machine 150 | . . 60 90 . . Destroy Structure 95 | . 1 1 93 . . Lose Combat Pursuer 45 | . 30 15 . . . Influence Decreases 1882 | 35 222 490 778 338 19 Entered New Map 324 | . . . 97 208 19 Time Decay 1208 | 35 222 440 381 130 . Lost Part 130 | . . 50 80 . . Lost Ally 70 | . . . 70 . . Purge Threat 150 | . . . 150 . . Squads Dispatched 10 | . 3 1 6 . . Investigation 3 | . 1 1 1 . . Extermination . | . . . . . . Reinforcement 3 | . 2 . 1 . . Assault 2 | . . . 2 . . Garrison 2 | . . . 2 . . Intercept . | . . . . . . Searches Triggered . | . . . . . . Construction Impeded . | . . . . . . Haulers Reinforced . | . . . . . . Active Scanning Responses . | . . . . . . Cargo Convoy Interrupts . | . . . . . . Stealth | -11 -10 -9 -9 -9 -9 --------- Run | Yrd Mat Mat Sto Rec Scr Distress Signals 8 | . . 7 1 . . Communications Jammed . | . . . . . . Distress Signals . | . . . . . . Times Spotted 121 | . 20 36 37 . 28 Peak Tracking Total 10 | . 3 6 10 . 7 Tactical Retreats 4 | . 1 1 . . 2 Traps | -11 -10 -9 -9 -9 -9 ------- Run | Yrd Mat Mat Sto Rec Scr Traps Triggered 5 | . 1 1 3 . . Indirectly . | . . . . . . Trap Hack Attempts . | . . . . . . Triggered . | . . . . . . Disarmed . | . . . . . . Reprogrammed . | . . . . . . Reused . | . . . . . . Traps Extracted . | . . . . . . Installed . | . . . . . . Triggered . | . . . . . . Machines | -11 -10 -9 -9 -9 -9 ---------- Run | Yrd Mat Mat Sto Rec Scr Machines Disabled 11 | . . 4 6 . 1 Max in Single Turn 1 | . . 1 1 . 1 Garrison Access 1 | . . . 1 . . Machines Repaired . | . . . . . . Machines Dismantled . | . . . . . . Machines Sabotaged . | . . . . . . Overloaded Fab Kills . | . . . . . . Hacking | -11 -10 -9 -9 -9 -9 --------- Run | Yrd Mat Mat Sto Rec Scr Machines Accessed 26 | . 3 6 6 4 7 Terminals 16 | . 3 4 5 4 . Fabricators . | . . . . . . Repair Stations . | . . . . . . Recycling Units . | . . . . . . Scanalyzers 2 | . . 2 . . . Garrison Access 1 | . . . 1 . . Total Hacks 75 | . 5 14 14 14 28 Successful 42 | . . 5 5 4 28 Failed 33 | . 5 9 9 10 . Catastrophic 9 | . 3 1 1 4 . Database Lockouts . | . . . . . . Manual 19 | . 3 . 7 9 . Terminals 42 | . 5 11 12 14 . Fabricators . | . . . . . . Repair Stations . | . . . . . . Recycling Units . | . . . . . . Scanalyzers 3 | . . 3 . . . Garrison Access 2 | . . . 2 . . Terminal Hacks 38 | . . 3 3 4 28 Record 22 | . . . . . 22 Robot Analysis 4 | . . . . . 4 Open Door 2 | . . . 1 . 1 Level Access Points 1 | . . 1 . . . Branch Access Points 1 | . . . 1 . . Alert Level 1 | . . . . 1 . Unreport Threat 1 | . . . 1 . . Dispatch Records 3 | . . 1 . 2 . Security Status 1 | . . . . 1 . Hauler Manifests 1 | . . 1 . . . Proto ID Catalog 1 | . . . . . 1 Fabricator Hacks . | . . . . . . Repair Station Hacks . | . . . . . . Recycling Unit Hacks . | . . . . . . Scanalyzer 2 | . . 2 . . . Retrieve Study 2 | . . 2 . . . Garrison Access Hacks 1 | . . . 1 . . Seal Access 1 | . . . 1 . . Unauthorized Hacks 1 | . . . 1 . . Terminals 1 | . . . 1 . . Assimilate 1 | . . . 1 . . Fabricators . | . . . . . . Repair Stations . | . . . . . . Recycling Units . | . . . . . . Scanalyzers . | . . . . . . Garrison Access . | . . . . . . Data Cores Recovered . | . . . . . . Used . | . . . . . . Hacking Detections 19 | . 3 5 7 4 . Full Trace Events 5 | . . 1 1 3 . Feedback Events . | . . . . . . Feedback Blocked . | . . . . . . Robot Schematics Acquired . | . . . . . . Robots Built . | . . . . . . Authchips . | . . . . . . Time . | . . . . . . Total Robot Build Rating . | . . . . . . Part Schematics Acquired . | . . . . . . Parts Built . | . . . . . . Authchips . | . . . . . . Time . | . . . . . . Total Part Build Rating . | . . . . . . Part Studies Acquired 2 | . . 2 . . . Parts Repaired . | . . . . . . Time . | . . . . . . Parts Recycled . | . . . . . . Recycled Matter . | . . . . . . Retrieved Matter . | . . . . . . Retrieved Components . | . . . . . . Parts Scanalyzed . | . . . . . . Part Schematics Acquired . | . . . . . . Parts Damaged . | . . . . . . Bothacking | -11 -10 -9 -9 -9 -9 ------------ Run | Yrd Mat Mat Sto Rec Scr Used RIF Installer . | . . . . . . Robots Hacked . | . . . . . . Non-combat . | . . . . . . Combat . | . . . . . . Robot Hacks Applied . | . . . . . . Relay Couplers Released . | . . . . . . Fabnet Peak Effective % . | . . . . . . Robots Rewired . | . . . . . . Allies Hacked . | . . . . . . Hacks Repelled . | . . . . . . Allies | -11 -10 -9 -9 -9 -9 -------- Run | Yrd Mat Mat Sto Rec Scr Total Allies 2 | . . . 2 . . Largest Group 2 | . . . 2 . . Highest-Rated Group 62 | . . . 62 . . Highest-Rated Ally 31 | . . . 31 . . Total Orders 8 | . . . 8 . . EXPLORE 8 | . . . 8 . . Ally Attacks . | . . . . . . Total Damage . | . . . . . . Kills . | . . . . . . Allies Corrupted 1 | . . . 1 . . Allies Melted 7 | . . . . . 7 Intel | -11 -10 -9 -9 -9 -9 ------- Run | Yrd Mat Mat Sto Rec Scr Active Infowar (turns) 1605 | 116 736 753 . . . Terrain 1604 | 116 736 752 . . . Seismic 1 | . . 1 . . . Robot Analysis Total 4 | . . . . . 4 Derelict Logs Recovered . | . . . . . . Drone Launches 8 | . . . 8 . . Drone Recoveries 5 | . . . 5 . . Exploration | -11 -10 -9 -9 -9 -9 ------------- Run | Yrd Mat Mat Sto Rec Scr Turns Passed 6157 | 200 736 1280 1633 265 2043 Spaces Moved 3719 | 95 361 580 594 253 1836 Core 5 | 5 . . . . . Treads 1532 | 90 361 580 498 . 3 Legs 43 | . . . 43 . . Wheels 2132 | . . . 46 253 1833 Hover . | . . . . . . Flight 7 | . . . 7 . . Fastest Speed 50 | 50 160 160 105 105 90 Average Speed 130 | 154 160 160 188 105 98 Slowest Speed 260 | 160 160 240 260 105 180 Overloaded Moves . | . . . . . . Propulsion Burnouts . | . . . . . . Robots Hopped . | . . . . . . Potential Cave-ins . | . . . . . . Cave-ins Triggered . | . . . . . . Exploration Rate (%) 63 | 5 61 65 90 64 93 Regions Visited 5 Branch Regions 3 Pre-discovered Areas . | . . . . . . Known Exits Taken 3 | . . 1 1 1 . Unknown Exits Taken 2 | 1 1 . . . . Scrap Searched 8 | . . . . . 8 Spaces Dug 1 | . . . 1 . . Terrain Destroyed 167 | . . . 98 . 69 Melee 1 | . . . 1 . . Projectile 1 | . . . . . 1 AOE 165 | . . . 97 . 68 Terrain Rammed . | . . . . . . Walls Destroyed . | . . . . . . Machines Disabled . | . . . . . . Actions | -11 -10 -9 -9 -9 -9 --------- Run | Yrd Mat Mat Sto Rec Scr Total 4637 | 117 444 806 951 252 2067 Wait 502 | . 31 90 214 . 167 Move 3715 | 95 360 579 593 252 1836 Hop . | . . . . . . Pick Up 48 | 1 9 13 9 . 16 Fast Attach 25 | 7 . 8 5 . 5 Attach 8 | . . 1 6 . 1 Detach 2 | . . . . . 2 Swap 42 | . 1 13 20 . 8 Drop 44 | . 3 15 9 . 17 Fire 223 | 14 38 73 84 . 14 Melee 6 | . . . 6 . . Ram . | . . . . . . Kick . | . . . . . . Crush 21 | . 2 14 5 . . Escape Stasis . | . . . . . . Rewire 1 | . . . . . 1 Trap . | . . . . . . Miscellaneous . | . . . . . . Route ------- -11/Scrapyard -10/Materials (discovered 3 exits: *Mat x2 / [*Min]) -9/Materials (discovered 5 exits: *Mat x3 / *Sto x2) -9/Storage (discovered 2 exits: *Mat / *Rec) -9/Recycling -9/Scraptown (discovered 2 exits: [*Fac x2]) History --------- Turn | Location | Event 3 | -11/Scrapyard | Discovered new exit (range 15) 201 | -11/Scrapyard | Entered Materials 301 | -10/Materials | Discovered new exit (range 10) 316 | -10/Materials | Build established: Mutant 642 | -10/Materials | Discovered new exit (range 16) 873 | -10/Materials | Discovered new exit (range 8) 937 | -10/Materials | Entered another Materials area 937 | -9/Materials | Evolved 2 slots: Utility x2 1225 | -9/Materials | System corruption reached 10% 1288 | -9/Materials | Discovered new exit (range 7) 1838 | -9/Materials | Identified exit to Materials 1910 | -9/Materials | Build established: Scavenger-Mutant 2196 | -9/Materials | Discovered new exit (range 14) 2215 | -9/Materials | Identified exit to Storage 2217 | -9/Materials | Entered Storage 2700 | -9/Storage | Build established: Mutant 3086 | -9/Storage | Garrison activated, responded to threat 3177 | -9/Storage | Lost 3 parts (1p1u1w) 3466 | -9/Storage | Identified exit to Recycling 3524 | -9/Storage | Discovered exit to Materials (range 15) 3603 | -9/Storage | Met a pair of Derelict thieves 3646 | -9/Storage | Core integrity fell below 50% 3697 | -9/Storage | Destroyed 10 combat bots 3846 | -9/Storage | Used back door to open Recycling access 3850 | -9/Storage | Entered Recycling 4090 | -9/Recycling | Scanned before Scraplab entrance 4105 | -9/Recycling | Entered Scraplab 4113 | -9/Recycling | Discovered new exit (range 3) 4114 | -9/Recycling | Identified exit to Scraptown 4115 | -9/Recycling | Entered Scraptown 4115 | -9/Scraptown | System corruption cleaned by C-Scrubber 4271 | -9/Scraptown | Visited IN-MT5's Study 4304 | -9/Scraptown | Visited UFD Registry 4319 | -9/Scraptown | Visited SPCMW 4343 | -9/Scraptown | Visited Shadow of the Wyrm 4361 | -9/Scraptown | Visited TADAMA 4394 | -9/Scraptown | Visited Cave Peace 4531 | -9/Scraptown | Discovered new exit (range 11) 4824 | -9/Scraptown | Visited Fellowship of the Rings 4849 | -9/Scraptown | Visited Bundlers 4958 | -9/Scraptown | Registered with UFD as "Wrenchbank" 4998 | -9/Scraptown | Visited Research Penetration Think Tank 5023 | -9/Scraptown | Visited Sword Containment 5055 | -9/Scraptown | Visited Scrapoid Research Area 5151 | -9/Scraptown | Visited Junk Repository 5196 | -9/Scraptown | Visited Analyses Database 5230 | -9/Scraptown | Visited Junk Repository 5553 | -9/Scraptown | Visited Science Guys 5600 | -9/Scraptown | Visited LU-1G1's Boring Crew 5653 | -9/Scraptown | Visited A0-MCA Data Center 5659 | -9/Scraptown | Given a C- rating by A0-MCA 5664 | -9/Scraptown | Found A0-MCA's Component Scanner 5740 | -9/Scraptown | Met Optimus 5740 | -9/Scraptown | Accepted into 0bPrime 5819 | -9/Scraptown | Discovered new exit (range 5) 5820 | -9/Scraptown | Civil war broke out across Scraptown 5846 | -9/Scraptown | Visited Chapter 10 5854 | -9/Scraptown | Found ID Mask 5887 | -9/Scraptown | Lost 6 allies 5925 | -9/Scraptown | Core integrity fell below 20% 6005 | -9/Scraptown | Optimus destroyed in the chaos of civil war 6019 | -9/Scraptown | Destroyed 7 combat bots 6067 | -9/Scraptown | Lost 6 allies 6158 | -9/Scraptown | Destroyed by 6S-DZH(j) with Overtuned Pulse Rifle Last Messages --------------- 06119_ Acquired Arm. Wheel. 06123_ Acquired 50 matter. 06143_ KZ-HTZ(g) destroyed. 06145_ EJ-AEB(g): "Triborg not so powerful after all." 06146_ Critical hit (Burn: +50). 06146_ Slug penetrates I2-QHD(j). 06146_ Slug penetrates EJ-AEB(g). 06146_ EJ-AEB(g) destroyed. 06146_ Destroyed Lgt. Deuterium Engine. 06146_ SO-G9Z(b) destroyed. 06149_ Operating Theater damaged. 06149_ I2-QHD(j) destroyed. 06152_ Discarded Signal Interpreter. 06152_ Arm. Wheel destroyed. 06153_ Slug penetrates Wall. 06153_ Lgt. Deuterium Engine melted. 06153_ 7Q-QST(j) destroyed. 06155_ Critical hit (Burn: +50). 06157_ GI-9JO(j) heat damages Ovr. Titanium Leg. Map ----- +----------------------------------------------------+ | ?????????????????????????????????????????????????? | | ?????????????????????????????????????????????????? | | ?????????????????????????????????????????????????? | | ?????????##############???####????????"#?????????? | | ????????#"""##""|##"""#??## ##??????< #?????????? | | ????"" ##""!##""|##!!"#### ###### ##????????? | | ????"" #????????? | | ???# #????????? | | ???####################### ###########????????? | | ?????????????????????????## %##??????????????????? | | ?????###########?#######??#!* #??????????????????? | | ?????# #? """"?# [[ ##########?????????? | | ?????# #?" " "? % """""""""??????????? | | ?????# / #""" ? !! " ##?????????? | | ##???# #""" # =% "" #?????????? | | "#???# #""" " =% " #?????????? | | "#???# # " """ ! """ ! #?????????? | | "#???##### ##### """ ==%/ " "=%! #?????????? | | "#????#### X####"" """#!%= "" = #?????????? | | *#????# ##" " #=[= " #?????????? | | "#????# ##" # =! ###????????? | | "????# ## # =% =[ #????????? | | "##???### ########### #####=[## #########????????? | | ""######" ##"##""#### #####%*##%#########????????? | | """"""" """]==" = "%[!## [] #????????? | | % ! =h! %==%!@ !!%**;; /=#????????? | | !*! !%!%![! %! ! [[[="## ####????????? | | !%!=% ! = !% ![ *= ##= ]#????????? | | =*% =[[![ = !=! "## !=#????????? | | !!=[![%[%* [%= [=%!= !#????????? | | """""=*! " " """""" "" "j **!! ## ####????????? | | """""""""""""""""""""""""" !!%!%"## |!#????????? | | "###### ################ =%*=!"## !/#????????? | | "# ##????????# j "#########???????? | | "# X"#????????#" "## """"#???????? | | "# "" "" ##????????#" = "## " "#???????? | | "# "" "" "#??????### %! "## X"#???????? | | "# " " ######### #"[! j!="## "#???????? | | " "" [ ! *%=% ""#???????? | | " "" [ jp[!%"## " "#???????? | | "# " " ######### #"" !="## """"#???????? | | "# "" "" ""#??????###" "## """"#???????? | | "# "" "" ##????????#"" "#########???????? | | "# X"#????????#"" "#???????????????? | | "# ##????????#"" "########????????? | | "###### ################"" "## ]!#????????? | | """"""""""""""""""""""""""" "## ]#????????? | | """"""""""""""""""""""""""" ####????????? | | "## ![#????????? | | [! "## ]]#????????? | +----------------------------------------------------+ Best States ------------- Heat Dissipation 28 Coolant Potential 50 Energy Generation 29 Energy Capacity 340 Matter Stores 300 Matter Capacity 300 Sight Range 16 Terrain Scan Range 16 Terrain Scan Density 10 Armor Coverage 300 Evasion (%) 42 Targeting Accuracy 12 Recoil Reduction 2 Item Schematics ----------------- None Robot Schematics ------------------ None Fabricated ------------ Nothing Repaired ---------- Nothing Studied --------- Flight Unit | -9/Materials | Hacked Rocket Launcher | -9/Materials | Hacked Alien Tech Used ----------------- None Achievements -------------- Link The Feds Wiki Contributor Challenges ------------ None Game ------ Seed MagneticLightpackCyclogen Manual? 0 Play Time 01:05:05 Cumulative 84.7 hours Start 2026.02.19 @ 20:27:23 End 2026.02.20 @ 10:07:09 Sessions 1 Manual Loads 0 Difficulty Rogue Special Mode None Game No. 138 Rogue 138 Adventurer 0 Explorer 0 Win Type - Total 1 Types 1/0/0/0/0/0/0/0/0/0 Lore% 41 Gallery% 46 Achievement% 33 Wizard Run 0 Options --------- Layout 1 ASCII 0 Keyboard 1 Movement Arrows Keybinds 0 Fullscreen 1 Font 24/Smallcaps Map View 50x35 Zoom Use 0% Tactical HUD 1 Map Filters NONE Filters NONE Steam 1 RUN: 40871548-5c1d-4c30-985d-d73a36512b71